[Event "Titled Tuesday Blitz August 31 2021"]
[White "Sargsyan, Anna M."]
[Black "Jobava, Baadur"]
[WhiteFideId "13308130"]
[BlackFideId "13601520"]
[WhiteElo "2263"]
[BlackElo "2748"]
[Result "1-0"]
[Round "02"]
[TimeControl "180+1"]
[Date "2021.08.31"]
[WhiteClock "0:00:14"]
[BlackClock "0:01:21"]

1. e4 {[%clk 0:03:00]}  e5 {[%clk 0:02:59]} 2. Nf3 {[%clk 0:03:00]}  Nf6 {[%clk 0:02:59]} 3. Nc3 {[%clk 0:02:59]}  d6 {[%clk 0:02:59]} 4. d4 {[%clk 0:02:59]}  Nbd7 {[%clk 0:02:59]} 5. Bd3 {[%clk 0:02:58]}  Be7 {[%clk 0:02:59]} 6. O-O {[%clk 0:02:58]}  O-O {[%clk 0:03:00]} 7. h3 {[%clk 0:02:58]}  b6 {[%clk 0:02:59]} 8. Re1 {[%clk 0:02:59]}  Bb7 {[%clk 0:03:00]} 9. Bg5 {[%clk 0:02:57]}  Re8 {[%clk 0:03:00]} 10. Qd2 {[%clk 0:02:57]}  h6 {[%clk 0:02:59]} 11. Bh4 {[%clk 0:02:57]}  Nh5 {[%clk 0:03:00]} 12. Bxe7 {[%clk 0:02:51]}  Qxe7 {[%clk 0:03:00]} 13. Nd5 {[%clk 0:02:47]}  Qd8 {[%clk 0:03:01]} 14. Ne3 {[%clk 0:02:42]}  Nf4 {[%clk 0:02:57]} 15. Nf5 {[%clk 0:02:38]}  Qf6 {[%clk 0:02:47]} 16. dxe5 {[%clk 0:02:29]}  dxe5 {[%clk 0:02:45]} 17. Bb5 {[%clk 0:02:29]}  Nc5 {[%clk 0:02:29]} 18. Bxe8 {[%clk 0:02:25]}  Rxe8 {[%clk 0:02:30]} 19. Ng3 {[%clk 0:02:14]}  Nxh3+ {[%clk 0:02:29]} 20. gxh3 {[%clk 0:02:15]}  Qxf3 {[%clk 0:02:29]} 21. Qe3 {[%clk 0:02:10]}  Qf6 {[%clk 0:02:27]} 22. Rad1 {[%clk 0:02:09]}  Ne6 {[%clk 0:02:26]} 23. Kh2 {[%clk 0:01:56]}  Ng5 {[%clk 0:02:25]} 24. Kg2 {[%clk 0:01:41]}  Bc8 {[%clk 0:02:24]} 25. Rh1 {[%clk 0:01:35]}  Ne6 {[%clk 0:02:19]} 26. Nf5 {[%clk 0:01:07]}  Nf4+ {[%clk 0:02:18]} 27. Kh2 {[%clk 0:01:07]}  Bxf5 {[%clk 0:02:18]} 28. exf5 {[%clk 0:01:07]}  Qxf5 {[%clk 0:02:19]} 29. c3 {[%clk 0:01:00]}  e4 {[%clk 0:02:06]} 30. Rhg1 {[%clk 0:00:54]}  Nd3 {[%clk 0:01:56]} 31. Rg2 {[%clk 0:00:41]}  Kh7 {[%clk 0:01:50]} 32. Rxd3 {[%clk 0:00:20]}  Qe5+ {[%clk 0:01:50]} 33. f4 {[%clk 0:00:20]}  exf3+ {[%clk 0:01:50]} 34. Qxe5 {[%clk 0:00:20]}  Rxe5 {[%clk 0:01:40]} 35. Rxf3 {[%clk 0:00:21]}  f5 {[%clk 0:01:41]} 36. Rgf2 {[%clk 0:00:18]}  Kg6 {[%clk 0:01:41]} 37. Rg3+ {[%clk 0:00:18]}  Kf6 {[%clk 0:01:41]} 38. c4 {[%clk 0:00:19]}  g5 {[%clk 0:01:41]} 39. Rd3 {[%clk 0:00:18]}  f4 {[%clk 0:01:38]} 40. b3 {[%clk 0:00:19]}  h5 {[%clk 0:01:38]} 41. Rd7 {[%clk 0:00:19]}  Rc5 {[%clk 0:01:30]} 42. Kg2 {[%clk 0:00:16]}  a5 {[%clk 0:01:30]} 43. Rh7 {[%clk 0:00:16]}  Kg6 {[%clk 0:01:29]} 44. Rd7 {[%clk 0:00:17]}  c6 {[%clk 0:01:28]} 45. h4 {[%clk 0:00:17]}  b5 {[%clk 0:01:27]} 46. hxg5 {[%clk 0:00:17]}  Kxg5 {[%clk 0:01:28]} 47. cxb5 {[%clk 0:00:17]}  cxb5 {[%clk 0:01:28]} 48. Rg7+ {[%clk 0:00:17]}  Kf6 {[%clk 0:01:28]} 49. Rg8 {[%clk 0:00:16]}  Kf7 {[%clk 0:01:28]} 50. Rh8 {[%clk 0:00:15]}  Kg7 {[%clk 0:01:27]} 51. Rd8 {[%clk 0:00:15]}  Rg5+ {[%clk 0:01:28]} 52. Kh3 {[%clk 0:00:15]}  Rg3+ {[%clk 0:01:26]} 53. Kh4 {[%clk 0:00:16]}  Rg1 {[%clk 0:01:23]} 54. Rxf4 {[%clk 0:00:15]}  Rh1+ {[%clk 0:01:23]} 55. Kg3 {[%clk 0:00:15]}  Ra1 {[%clk 0:01:21]} 56. Rd7+ {[%clk 0:00:15]}  Kg6 {[%clk 0:01:21]} 57. Rf2 {[%clk 0:00:15]}  b4 {[%clk 0:01:20]} 58. Rd6+ {[%clk 0:00:15]}  Kg7 {[%clk 0:01:21]} 59. Rd5 {[%clk 0:00:15]}  Kg6 {[%clk 0:01:21]} 60. Rc2 {[%clk 0:00:14]} 1-0


[Site "https://www.chess.com"]

[Event "Titled Tuesday Blitz August 31 2021"]
[White "Sharapov, Evgeny"]
[Black "Goltsev, Dmitry"]
[WhiteFideId "14103133"]
[BlackFideId "24176710"]
[WhiteElo "2367"]
[BlackElo "2369"]
[Result "0-1"]
[Round "02"]
[TimeControl "180+1"]
[Date "2021.08.31"]
[WhiteClock "0:00:02"]
[BlackClock "0:00:07"]

1. e4 {[%clk 0:02:59]}  e6 {[%clk 0:02:57]} 2. d4 {[%clk 0:02:59]}  d5 {[%clk 0:02:58]} 3. Nc3 {[%clk 0:02:59]}  Nf6 {[%clk 0:02:57]} 4. Bg5 {[%clk 0:02:58]}  Be7 {[%clk 0:02:57]} 5. e5 {[%clk 0:02:58]}  Nfd7 {[%clk 0:02:57]} 6. Bxe7 {[%clk 0:02:57]}  Qxe7 {[%clk 0:02:58]} 7. f4 {[%clk 0:02:57]}  a6 {[%clk 0:02:57]} 8. Nf3 {[%clk 0:02:57]}  c5 {[%clk 0:02:55]} 9. dxc5 {[%clk 0:02:56]}  Nxc5 {[%clk 0:02:55]} 10. Bd3 {[%clk 0:02:56]}  Nc6 {[%clk 0:02:54]} 11. O-O {[%clk 0:02:54]}  b5 {[%clk 0:02:53]} 12. a3 {[%clk 0:02:53]}  Bb7 {[%clk 0:02:53]} 13. b4 {[%clk 0:02:47]}  Nd7 {[%clk 0:02:51]} 14. Ne2 {[%clk 0:02:47]}  g6 {[%clk 0:02:48]} 15. Ned4 {[%clk 0:02:46]}  Nb6 {[%clk 0:02:45]} 16. Nxc6 {[%clk 0:02:43]}  Bxc6 {[%clk 0:02:45]} 17. Nd4 {[%clk 0:02:43]}  Bb7 {[%clk 0:02:46]} 18. Kh1 {[%clk 0:02:43]}  h5 {[%clk 0:02:45]} 19. Qe2 {[%clk 0:02:40]}  Rc8 {[%clk 0:02:45]} 20. Qf2 {[%clk 0:02:39]}  Qc7 {[%clk 0:02:45]} 21. Nb3 {[%clk 0:02:35]}  Na4 {[%clk 0:02:40]} 22. Qd4 {[%clk 0:02:31]}  Ke7 {[%clk 0:02:34]} 23. Rae1 {[%clk 0:02:25]}  Qb6 {[%clk 0:02:11]} 24. Qxb6 {[%clk 0:02:23]}  Nxb6 {[%clk 0:02:11]} 25. Nc5 {[%clk 0:02:22]}  Rxc5 {[%clk 0:02:08]} 26. bxc5 {[%clk 0:02:21]}  Na4 {[%clk 0:02:09]} 27. Kg1 {[%clk 0:02:20]}  Rc8 {[%clk 0:02:03]} 28. Kf2 {[%clk 0:02:17]}  d4 {[%clk 0:02:01]} 29. Rb1 {[%clk 0:02:04]}  Nxc5 {[%clk 0:01:53]} 30. Rb2 {[%clk 0:01:46]}  h4 {[%clk 0:01:47]} 31. Rd1 {[%clk 0:01:44]}  Bd5 {[%clk 0:01:44]} 32. Rd2 {[%clk 0:01:40]}  Rd8 {[%clk 0:01:39]} 33. Rb4 {[%clk 0:01:36]}  Bc6 {[%clk 0:01:34]} 34. Ke1 {[%clk 0:01:30]}  a5 {[%clk 0:01:33]} 35. Rb1 {[%clk 0:01:29]}  Na4 {[%clk 0:01:23]} 36. Bf1 {[%clk 0:01:11]}  Nc3 {[%clk 0:01:18]} 37. Rb3 {[%clk 0:01:10]}  Bd5 {[%clk 0:01:18]} 38. Rb2 {[%clk 0:01:04]}  Bc6 {[%clk 0:01:16]} 39. Rb3 {[%clk 0:00:59]}  b4 {[%clk 0:01:12]} 40. axb4 {[%clk 0:00:59]}  a4 {[%clk 0:01:07]} 41. Ra3 {[%clk 0:00:48]}  Nb1 {[%clk 0:01:07]} 42. Ra1 {[%clk 0:00:45]}  Nxd2 {[%clk 0:01:05]} 43. Kxd2 {[%clk 0:00:46]}  Rb8 {[%clk 0:01:03]} 44. b5 {[%clk 0:00:45]}  Bxb5 {[%clk 0:01:01]} 45. Rb1 {[%clk 0:00:43]}  a3 {[%clk 0:00:56]} 46. Bxb5 {[%clk 0:00:37]}  a2 {[%clk 0:00:57]} 47. Ra1 {[%clk 0:00:36]}  Rxb5 {[%clk 0:00:57]} 48. Rxa2 {[%clk 0:00:36]}  Rb1 {[%clk 0:00:58]} 49. Ra7+ {[%clk 0:00:29]}  Kf8 {[%clk 0:00:56]} 50. Ra8+ {[%clk 0:00:28]}  Kg7 {[%clk 0:00:54]} 51. Ke2 {[%clk 0:00:26]}  Rc1 {[%clk 0:00:54]} 52. Rc8 {[%clk 0:00:25]}  d3+ {[%clk 0:00:50]} 53. Kxd3 {[%clk 0:00:24]}  Rg1 {[%clk 0:00:50]} 54. g3 {[%clk 0:00:23]}  h3 {[%clk 0:00:48]} 55. c4 {[%clk 0:00:21]}  Rxg3+ {[%clk 0:00:46]} 56. Ke4 {[%clk 0:00:19]}  Rg2 {[%clk 0:00:47]} 57. c5 {[%clk 0:00:18]}  Rxh2 {[%clk 0:00:45]} 58. Ra8 {[%clk 0:00:17]}  Rc2 {[%clk 0:00:36]} 59. Ra3 {[%clk 0:00:16]}  h2 {[%clk 0:00:36]} 60. Rh3 {[%clk 0:00:15]}  Kf8 {[%clk 0:00:36]} 61. c6 {[%clk 0:00:14]}  Ke7 {[%clk 0:00:35]} 62. Rh8 {[%clk 0:00:13]}  Re2+ {[%clk 0:00:26]} 63. Kd3 {[%clk 0:00:13]}  Re1 {[%clk 0:00:25]} 64. Rxh2 {[%clk 0:00:10]}  Rc1 {[%clk 0:00:21]} 65. Ke4 {[%clk 0:00:08]}  Rc4+ {[%clk 0:00:21]} 66. Ke3 {[%clk 0:00:07]}  Rxc6 {[%clk 0:00:21]} 67. Ra2 {[%clk 0:00:07]}  Rc4 {[%clk 0:00:20]} 68. Kf3 {[%clk 0:00:06]}  Kf8 {[%clk 0:00:19]} 69. Kg4 {[%clk 0:00:07]}  Rc1 {[%clk 0:00:19]} 70. Ra7 {[%clk 0:00:05]}  Kg7 {[%clk 0:00:19]} 71. Kg5 {[%clk 0:00:05]}  Rg1+ {[%clk 0:00:18]} 72. Kh4 {[%clk 0:00:06]}  g5+ {[%clk 0:00:13]} 73. fxg5 {[%clk 0:00:05]}  Kg6 {[%clk 0:00:13]} 74. Rb7 {[%clk 0:00:04]}  Rxg5 {[%clk 0:00:12]} 75. Rxf7 {[%clk 0:00:03]}  Rxe5 {[%clk 0:00:09]} 76. Rf1 {[%clk 0:00:03]}  Rf5 {[%clk 0:00:08]} 77. Re1 {[%clk 0:00:02]}  Kf6 {[%clk 0:00:08]} 78. Kg4 {[%clk 0:00:02]}  Ke7 {[%clk 0:00:09]} 79. Re4 {[%clk 0:00:02]}  Rf7 {[%clk 0:00:09]} 80. Kg3 {[%clk 0:00:02]}  Kd6 {[%clk 0:00:09]} 81. Rf4 {[%clk 0:00:02]}  Rxf4 {[%clk 0:00:06]} 82. Kxf4 {[%clk 0:00:02]}  Kd5 {[%clk 0:00:07]} 0-1


[Site "https://www.chess.com"]

[Event "Titled Tuesday Blitz August 31 2021"]
[White "Sipila, Vilka"]
[Black "Najdin, Danil"]
[WhiteFideId "505455"]
[BlackFideId "4172426"]
[WhiteElo "2334"]
[BlackElo "2193"]
[Result "1-0"]
[Round "02"]
[TimeControl "180+1"]
[Date "2021.08.31"]
[WhiteClock "0:01:35"]
[BlackClock "0:00:30"]

1. d4 {[%clk 0:02:55]}  Nf6 {[%clk 0:02:59]} 2. c4 {[%clk 0:02:54]}  g6 {[%clk 0:03:00]} 3. g3 {[%clk 0:02:54]}  Bg7 {[%clk 0:03:00]} 4. Bg2 {[%clk 0:02:54]}  O-O {[%clk 0:03:00]} 5. Nf3 {[%clk 0:02:55]}  d6 {[%clk 0:03:01]} 6. O-O {[%clk 0:02:55]}  Nc6 {[%clk 0:03:02]} 7. Nc3 {[%clk 0:02:56]}  a6 {[%clk 0:03:00]} 8. b3 {[%clk 0:02:55]}  Rb8 {[%clk 0:02:54]} 9. d5 {[%clk 0:02:55]}  Na5 {[%clk 0:02:52]} 10. Bd2 {[%clk 0:02:51]}  c5 {[%clk 0:02:52]} 11. dxc6 {[%clk 0:02:45]}  bxc6 {[%clk 0:02:50]} 12. e4 {[%clk 0:02:44]}  Nd7 {[%clk 0:02:40]} 13. Qe2 {[%clk 0:02:43]}  c5 {[%clk 0:02:39]} 14. Rad1 {[%clk 0:02:41]}  Nc6 {[%clk 0:02:38]} 15. Nd5 {[%clk 0:02:40]}  e6 {[%clk 0:02:23]} 16. Nc3 {[%clk 0:02:36]}  Nd4 {[%clk 0:02:23]} 17. Nxd4 {[%clk 0:02:31]}  Bxd4 {[%clk 0:02:22]} 18. Na4 {[%clk 0:02:26]}  Ne5 {[%clk 0:02:16]} 19. Bc3 {[%clk 0:02:22]}  Nc6 {[%clk 0:02:13]} 20. Qd3 {[%clk 0:02:22]}  e5 {[%clk 0:02:03]} 21. Kh1 {[%clk 0:02:15]}  Bd7 {[%clk 0:01:40]} 22. Qd2 {[%clk 0:02:07]}  Kg7 {[%clk 0:01:36]} 23. f4 {[%clk 0:02:06]}  Bg4 {[%clk 0:01:33]} 24. Rde1 {[%clk 0:02:05]}  Qd7 {[%clk 0:01:33]} 25. f5 {[%clk 0:02:04]}  gxf5 {[%clk 0:01:08]} 26. h3 {[%clk 0:02:03]}  f4 {[%clk 0:00:58]} 27. hxg4 {[%clk 0:02:03]}  Qxg4 {[%clk 0:00:58]} 28. Bf3 {[%clk 0:01:55]}  Qxg3 {[%clk 0:00:52]} 29. Rg1 {[%clk 0:01:51]}  Bxg1 {[%clk 0:00:51]} 30. Rxg1 {[%clk 0:01:52]}  Kh8 {[%clk 0:00:48]} 31. Rxg3 {[%clk 0:01:52]}  fxg3 {[%clk 0:00:48]} 32. Qxd6 {[%clk 0:01:52]}  Nd4 {[%clk 0:00:40]} 33. Qf6+ {[%clk 0:01:44]}  Kg8 {[%clk 0:00:39]} 34. Bg4 {[%clk 0:01:38]}  Rbd8 {[%clk 0:00:30]} 35. Nxc5 {[%clk 0:01:35]} 1-0


[Site "https://www.chess.com"]

[Event "Titled Tuesday Blitz August 31 2021"]
[White "Skliarov, Viktor"]
[Black "Suvorov, Luca"]
[WhiteFideId "14106736"]
[BlackFideId "12977071"]
[WhiteElo "2281"]
[BlackElo "2127"]
[Result "1-0"]
[Round "02"]
[TimeControl "180+1"]
[Date "2021.08.31"]
[WhiteClock "0:00:06"]
[BlackClock "0:00:02"]

1. e4 {[%clk 0:03:00]}  e5 {[%clk 0:02:23]} 2. Nc3 {[%clk 0:03:00]}  Nf6 {[%clk 0:02:22]} 3. Bc4 {[%clk 0:03:00]}  Nc6 {[%clk 0:02:22]} 4. d3 {[%clk 0:03:00]}  Na5 {[%clk 0:02:18]} 5. Nge2 {[%clk 0:03:00]}  a6 {[%clk 0:02:13]} 6. O-O {[%clk 0:02:57]}  b5 {[%clk 0:02:10]} 7. Bb3 {[%clk 0:02:49]}  Bb7 {[%clk 0:02:08]} 8. f4 {[%clk 0:02:40]}  Nxb3 {[%clk 0:02:07]} 9. axb3 {[%clk 0:02:38]}  Bc5+ {[%clk 0:02:07]} 10. Kh1 {[%clk 0:02:30]}  Ng4 {[%clk 0:02:06]} 11. Qe1 {[%clk 0:02:27]}  d6 {[%clk 0:01:56]} 12. Qg3 {[%clk 0:02:20]}  h5 {[%clk 0:01:55]} 13. Nd5 {[%clk 0:01:56]}  Bxd5 {[%clk 0:01:43]} 14. exd5 {[%clk 0:01:53]}  Qf6 {[%clk 0:01:36]} 15. Bd2 {[%clk 0:01:42]}  Qg6 {[%clk 0:01:09]} 16. f5 {[%clk 0:01:00]}  Qh7 {[%clk 0:01:02]} 17. b4 {[%clk 0:00:53]}  Bb6 {[%clk 0:01:00]} 18. Nc3 {[%clk 0:00:53]}  Nf6 {[%clk 0:00:58]} 19. Bg5 {[%clk 0:00:34]}  Kd7 {[%clk 0:00:50]} 20. Bxf6 {[%clk 0:00:31]}  gxf6 {[%clk 0:00:50]} 21. Ne4 {[%clk 0:00:32]}  Ke7 {[%clk 0:00:50]} 22. Qh4 {[%clk 0:00:24]}  Qh6 {[%clk 0:00:48]} 23. c4 {[%clk 0:00:24]}  Bd4 {[%clk 0:00:45]} 24. cxb5 {[%clk 0:00:22]}  axb5 {[%clk 0:00:44]} 25. Ra5 {[%clk 0:00:22]}  Rxa5 {[%clk 0:00:36]} 26. bxa5 {[%clk 0:00:22]}  b4 {[%clk 0:00:34]} 27. b3 {[%clk 0:00:21]}  Ra8 {[%clk 0:00:31]} 28. Ng3 {[%clk 0:00:19]}  Rxa5 {[%clk 0:00:29]} 29. Nxh5 {[%clk 0:00:19]}  Ra8 {[%clk 0:00:22]} 30. g4 {[%clk 0:00:19]}  Qg5 {[%clk 0:00:19]} 31. Qxg5 {[%clk 0:00:17]}  fxg5 {[%clk 0:00:20]} 32. f6+ {[%clk 0:00:17]}  Kd7 {[%clk 0:00:19]} 33. Ng7 {[%clk 0:00:10]}  Ra3 {[%clk 0:00:15]} 34. h4 {[%clk 0:00:09]}  gxh4 {[%clk 0:00:15]} 35. g5 {[%clk 0:00:10]}  e4 {[%clk 0:00:13]} 36. dxe4 {[%clk 0:00:08]}  Rxb3 {[%clk 0:00:13]} 37. Nf5 {[%clk 0:00:07]}  Be5 {[%clk 0:00:02]} 38. g6 {[%clk 0:00:06]}  Rh3+ {[%clk 0:00:02]} 39. Kg2 {[%clk 0:00:06]}  Rh2+ {[%clk 0:00:02]} 40. Kf3 {[%clk 0:00:07]}  Ke8 {[%clk 0:00:02]} 41. g7 {[%clk 0:00:07]}  Rh3+ {[%clk 0:00:02]} 42. Kg4 {[%clk 0:00:06]}  Rh2 {[%clk 0:00:02]} 43. g8=Q+ {[%clk 0:00:06]} 1-0


[Site "https://www.chess.com"]

[Event "Titled Tuesday Blitz August 31 2021"]
[White "Sokolin, Leonid"]
[Black "Tarigan, Gilbert Elroy"]
[WhiteFideId "2009161"]
[BlackFideId "7108133"]
[WhiteElo "2394"]
[BlackElo "1908"]
[Result "0-1"]
[Round "02"]
[TimeControl "180+1"]
[Date "2021.08.31"]
[WhiteClock "0:00:24"]
[BlackClock "0:00:06"]

1. e4 {[%clk 0:03:00]}  e5 {[%clk 0:02:58]} 2. Nf3 {[%clk 0:03:01]}  Nf6 {[%clk 0:02:58]} 3. d4 {[%clk 0:03:00]}  Nxe4 {[%clk 0:02:48]} 4. Bd3 {[%clk 0:02:59]}  d5 {[%clk 0:02:46]} 5. Nxe5 {[%clk 0:02:56]}  Be7 {[%clk 0:02:16]} 6. c4 {[%clk 0:02:55]}  O-O {[%clk 0:02:13]} 7. O-O {[%clk 0:02:51]}  Nc6 {[%clk 0:02:10]} 8. Nxc6 {[%clk 0:02:34]}  bxc6 {[%clk 0:02:11]} 9. Nc3 {[%clk 0:02:32]}  Nxc3 {[%clk 0:02:03]} 10. bxc3 {[%clk 0:02:32]}  Be6 {[%clk 0:01:47]} 11. c5 {[%clk 0:02:28]}  Qd7 {[%clk 0:01:36]} 12. Re1 {[%clk 0:02:27]}  Bf6 {[%clk 0:01:35]} 13. Bf4 {[%clk 0:02:24]}  Rfe8 {[%clk 0:01:30]} 14. h3 {[%clk 0:02:21]}  Rac8 {[%clk 0:01:23]} 15. Qh5 {[%clk 0:01:49]}  g6 {[%clk 0:01:23]} 16. Qf3 {[%clk 0:01:49]}  Bf5 {[%clk 0:01:18]} 17. Bxf5 {[%clk 0:01:45]}  Qxf5 {[%clk 0:01:19]} 18. Rxe8+ {[%clk 0:01:44]}  Rxe8 {[%clk 0:01:19]} 19. Bxc7 {[%clk 0:01:44]}  Qxf3 {[%clk 0:01:20]} 20. gxf3 {[%clk 0:01:43]}  Re2 {[%clk 0:01:18]} 21. Rb1 {[%clk 0:01:31]}  Rxa2 {[%clk 0:01:17]} 22. Rb8+ {[%clk 0:01:26]}  Kg7 {[%clk 0:01:17]} 23. Bd6 {[%clk 0:01:27]}  Bh4 {[%clk 0:01:13]} 24. Be5+ {[%clk 0:01:16]}  f6 {[%clk 0:00:50]} 25. Bg3 {[%clk 0:01:12]}  Bxg3 {[%clk 0:00:50]} 26. fxg3 {[%clk 0:01:12]}  Ra3 {[%clk 0:00:50]} 27. Rb7+ {[%clk 0:01:11]}  Kh6 {[%clk 0:00:49]} 28. Rc7 {[%clk 0:01:05]}  Rxc3 {[%clk 0:00:49]} 29. Rxc6 {[%clk 0:01:02]}  Rxf3 {[%clk 0:00:50]} 30. Kg2 {[%clk 0:00:59]}  Rd3 {[%clk 0:00:50]} 31. Rxf6 {[%clk 0:00:58]}  Rxd4 {[%clk 0:00:50]} 32. Rd6 {[%clk 0:00:55]}  a5 {[%clk 0:00:47]} 33. h4 {[%clk 0:00:54]}  a4 {[%clk 0:00:44]} 34. Ra6 {[%clk 0:00:53]}  Rd2+ {[%clk 0:00:38]} 35. Kf3 {[%clk 0:00:53]}  Rd3+ {[%clk 0:00:37]} 36. Kf4 {[%clk 0:00:52]}  a3 {[%clk 0:00:36]} 37. g4 {[%clk 0:00:50]}  Rd4+ {[%clk 0:00:33]} 38. Kg3 {[%clk 0:00:50]}  Kg7 {[%clk 0:00:26]} 39. g5 {[%clk 0:00:48]}  Rc4 {[%clk 0:00:24]} 40. Ra7+ {[%clk 0:00:47]}  Kg8 {[%clk 0:00:24]} 41. Ra8+ {[%clk 0:00:47]}  Kf7 {[%clk 0:00:24]} 42. Ra7+ {[%clk 0:00:46]}  Ke6 {[%clk 0:00:24]} 43. Rxa3 {[%clk 0:00:46]}  Rxc5 {[%clk 0:00:24]} 44. Ra7 {[%clk 0:00:46]}  Rc3+ {[%clk 0:00:23]} 45. Kg4 {[%clk 0:00:46]}  Rc4+ {[%clk 0:00:23]} 46. Kg3 {[%clk 0:00:46]}  d4 {[%clk 0:00:12]} 47. Rxh7 {[%clk 0:00:43]}  d3 {[%clk 0:00:12]} 48. Ra7 {[%clk 0:00:36]}  d2 {[%clk 0:00:11]} 49. Ra1 {[%clk 0:00:29]}  Rc1 {[%clk 0:00:11]} 50. Ra6+ {[%clk 0:00:30]}  Kd5 {[%clk 0:00:09]} 51. Ra5+ {[%clk 0:00:26]}  Rc5 {[%clk 0:00:09]} 52. Ra8 {[%clk 0:00:25]}  Kd4 {[%clk 0:00:06]} 53. Rd8+ {[%clk 0:00:24]}  Rd5 {[%clk 0:00:06]} 0-1


[Site "https://www.chess.com"]

[Event "Titled Tuesday Blitz August 31 2021"]
[White "Stribuk, Artiom"]
[Black "Stelmaszyk, Nico"]
[WhiteFideId "13515659"]
[BlackFideId "16200462"]
[WhiteElo "2224"]
[BlackElo "2119"]
[Result "0-1"]
[Round "02"]
[TimeControl "180+1"]
[Date "2021.08.31"]
[WhiteClock "0:00:12"]
[BlackClock "0:00:33"]

1. d4 {[%clk 0:03:00]}  d5 {[%clk 0:02:58]} 2. c4 {[%clk 0:03:00]}  e6 {[%clk 0:02:58]} 3. Nf3 {[%clk 0:03:00]}  c5 {[%clk 0:02:58]} 4. g3 {[%clk 0:03:00]}  Nc6 {[%clk 0:02:56]} 5. Bg2 {[%clk 0:03:00]}  Nf6 {[%clk 0:02:53]} 6. O-O {[%clk 0:03:00]}  Be7 {[%clk 0:02:53]} 7. cxd5 {[%clk 0:02:55]}  exd5 {[%clk 0:02:51]} 8. dxc5 {[%clk 0:02:55]}  Bxc5 {[%clk 0:02:51]} 9. Qc2 {[%clk 0:02:55]}  Be7 {[%clk 0:02:49]} 10. Nc3 {[%clk 0:02:49]}  Be6 {[%clk 0:02:46]} 11. Rd1 {[%clk 0:02:46]}  O-O {[%clk 0:02:46]} 12. Be3 {[%clk 0:02:29]}  Rc8 {[%clk 0:02:41]} 13. Nd4 {[%clk 0:02:20]}  Qd7 {[%clk 0:02:40]} 14. Qa4 {[%clk 0:01:54]}  Rfd8 {[%clk 0:02:35]} 15. Rac1 {[%clk 0:01:47]}  a6 {[%clk 0:02:28]} 16. Nxe6 {[%clk 0:01:41]}  fxe6 {[%clk 0:02:27]} 17. Bb6 {[%clk 0:01:42]}  Re8 {[%clk 0:02:25]} 18. Bh3 {[%clk 0:01:41]}  Qd6 {[%clk 0:02:20]} 19. e4 {[%clk 0:01:17]}  Ne5 {[%clk 0:02:11]} 20. Be3 {[%clk 0:01:15]}  Rc4 {[%clk 0:02:01]} 21. Qb3 {[%clk 0:00:56]}  Rb4 {[%clk 0:01:56]} 22. Qc2 {[%clk 0:00:49]}  d4 {[%clk 0:01:56]} 23. Bf4 {[%clk 0:00:28]}  Nh5 {[%clk 0:01:47]} 24. Bxe5 {[%clk 0:00:26]}  Qxe5 {[%clk 0:01:46]} 25. Ne2 {[%clk 0:00:26]}  Nf6 {[%clk 0:01:38]} 26. Bg2 {[%clk 0:00:25]}  Rd8 {[%clk 0:01:32]} 27. Nf4 {[%clk 0:00:20]}  Qd6 {[%clk 0:01:24]} 28. Nd3 {[%clk 0:00:20]}  Rb5 {[%clk 0:01:11]} 29. e5 {[%clk 0:00:19]}  Rxe5 {[%clk 0:01:11]} 30. Nxe5 {[%clk 0:00:20]}  Qxe5 {[%clk 0:01:12]} 31. Re1 {[%clk 0:00:20]}  Qd6 {[%clk 0:01:09]} 32. Qb3 {[%clk 0:00:20]}  d3 {[%clk 0:01:07]} 33. Rcd1 {[%clk 0:00:19]}  Kh8 {[%clk 0:00:56]} 34. Rxe6 {[%clk 0:00:19]}  Qc7 {[%clk 0:00:54]} 35. Rxd3 {[%clk 0:00:16]}  Qc1+ {[%clk 0:00:47]} 36. Bf1 {[%clk 0:00:16]}  Rxd3 {[%clk 0:00:43]} 37. Qxd3 {[%clk 0:00:17]}  Bf8 {[%clk 0:00:41]} 38. Qd8 {[%clk 0:00:13]}  Kg8 {[%clk 0:00:40]} 39. Rxf6 {[%clk 0:00:12]}  gxf6 {[%clk 0:00:40]} 40. Qxf6 {[%clk 0:00:13]}  Bc5 {[%clk 0:00:34]} 41. Qg5+ {[%clk 0:00:12]}  Qxg5 {[%clk 0:00:33]} 0-1


[Site "https://www.chess.com"]

[Event "Titled Tuesday Blitz August 31 2021"]
[White "Timmermans, Mark"]
[Black "Yaniuk, Volodymyr"]
[WhiteFideId "1026399"]
[BlackFideId "14133083"]
[WhiteElo "2460"]
[BlackElo "2207"]
[Result "1/2-1/2"]
[Round "02"]
[TimeControl "180+1"]
[Date "2021.08.31"]
[WhiteClock "0:00:20"]
[BlackClock "0:00:10"]

1. b4 {[%clk 0:03:00]}  e5 {[%clk 0:02:58]} 2. Bb2 {[%clk 0:03:00]}  d6 {[%clk 0:02:58]} 3. b5 {[%clk 0:02:59]}  g6 {[%clk 0:02:54]} 4. a4 {[%clk 0:02:59]}  Bg7 {[%clk 0:02:54]} 5. c4 {[%clk 0:03:00]}  a5 {[%clk 0:02:52]} 6. e3 {[%clk 0:02:59]}  Ne7 {[%clk 0:02:51]} 7. Nf3 {[%clk 0:02:58]}  O-O {[%clk 0:02:44]} 8. Nc3 {[%clk 0:02:58]}  Bg4 {[%clk 0:02:38]} 9. Be2 {[%clk 0:02:58]}  Nd7 {[%clk 0:02:37]} 10. O-O {[%clk 0:02:57]}  b6 {[%clk 0:02:31]} 11. d4 {[%clk 0:02:57]}  exd4 {[%clk 0:02:29]} 12. Nxd4 {[%clk 0:02:58]}  Bxe2 {[%clk 0:02:29]} 13. Qxe2 {[%clk 0:02:59]}  Nc5 {[%clk 0:02:29]} 14. Nd5 {[%clk 0:02:55]}  Re8 {[%clk 0:02:21]} 15. Nxe7+ {[%clk 0:02:53]}  Qxe7 {[%clk 0:02:20]} 16. Nc6 {[%clk 0:02:54]}  Qd7 {[%clk 0:02:14]} 17. Rfd1 {[%clk 0:02:51]}  Re4 {[%clk 0:02:03]} 18. Bxg7 {[%clk 0:02:48]}  Kxg7 {[%clk 0:02:03]} 19. f3 {[%clk 0:02:49]}  Re6 {[%clk 0:01:55]} 20. e4 {[%clk 0:02:49]}  Rae8 {[%clk 0:01:52]} 21. Qb2+ {[%clk 0:02:48]}  f6 {[%clk 0:01:51]} 22. Rd5 {[%clk 0:02:47]}  Qf7 {[%clk 0:01:46]} 23. h3 {[%clk 0:02:36]}  Kg8 {[%clk 0:01:46]} 24. Nd4 {[%clk 0:02:24]}  Re5 {[%clk 0:01:41]} 25. Qc2 {[%clk 0:02:24]}  Rxd5 {[%clk 0:01:29]} 26. cxd5 {[%clk 0:02:25]}  Qe7 {[%clk 0:01:24]} 27. Nc6 {[%clk 0:02:24]}  Qg7 {[%clk 0:01:23]} 28. Re1 {[%clk 0:01:28]}  Qh6 {[%clk 0:01:20]} 29. Qc3 {[%clk 0:01:07]}  Qh4 {[%clk 0:01:13]} 30. Ra1 {[%clk 0:01:01]}  Qf4 {[%clk 0:01:08]} 31. Kh1 {[%clk 0:00:57]}  h5 {[%clk 0:01:07]} 32. Nd4 {[%clk 0:00:52]}  Qe5 {[%clk 0:01:05]} 33. Qd2 {[%clk 0:00:53]}  Kh7 {[%clk 0:01:01]} 34. Rc1 {[%clk 0:00:51]}  Rf8 {[%clk 0:00:52]} 35. Rc4 {[%clk 0:00:51]}  Rf7 {[%clk 0:00:47]} 36. Ne6 {[%clk 0:00:51]}  Nxe6 {[%clk 0:00:43]} 37. dxe6 {[%clk 0:00:52]}  Qxe6 {[%clk 0:00:44]} 38. Qc1 {[%clk 0:00:52]}  Qe7 {[%clk 0:00:39]} 39. Qc3 {[%clk 0:00:51]}  g5 {[%clk 0:00:35]} 40. Qd3 {[%clk 0:00:49]}  Kg7 {[%clk 0:00:34]} 41. Qd5 {[%clk 0:00:47]}  Qe5 {[%clk 0:00:32]} 42. Qb7 {[%clk 0:00:41]}  Qa1+ {[%clk 0:00:31]} 43. Kh2 {[%clk 0:00:40]}  Qe5+ {[%clk 0:00:30]} 44. Kh1 {[%clk 0:00:41]}  Qe7 {[%clk 0:00:23]} 45. Qd5 {[%clk 0:00:40]}  h4 {[%clk 0:00:20]} 46. Rc6 {[%clk 0:00:36]}  Qe5 {[%clk 0:00:20]} 47. Qc4 {[%clk 0:00:36]}  Qa1+ {[%clk 0:00:19]} 48. Kh2 {[%clk 0:00:36]}  Qe5+ {[%clk 0:00:19]} 49. Kg1 {[%clk 0:00:37]}  Qa1+ {[%clk 0:00:18]} 50. Kf2 {[%clk 0:00:35]}  Qb2+ {[%clk 0:00:19]} 51. Kf1 {[%clk 0:00:30]}  Qb1+ {[%clk 0:00:17]} 52. Ke2 {[%clk 0:00:28]}  Qb2+ {[%clk 0:00:16]} 53. Ke3 {[%clk 0:00:23]}  Qxg2 {[%clk 0:00:14]} 54. Rxc7 {[%clk 0:00:23]}  Qg1+ {[%clk 0:00:14]} 55. Ke2 {[%clk 0:00:21]}  Qh2+ {[%clk 0:00:12]} 56. Ke3 {[%clk 0:00:20]}  Qg1+ {[%clk 0:00:11]} 57. Ke2 {[%clk 0:00:20]}  Qg2+ {[%clk 0:00:10]} 58. Ke3 {[%clk 0:00:20]}  Qg1+ {[%clk 0:00:10]} 1/2-1/2


[Site "https://www.chess.com"]